[Event "6. Internationales Spandauer Weihnachtsopen 2023"]
[Site "Spandau, Germany"]
[Date "2023.12.29"]
[Round "6.2"]
[White "Goluch, Piotr"]
[Black "Dathe, Frederick"]
[Result "1-0"]
[TimeControl "90 min+30 sec"]
[WhiteElo "2312"]
[BlackElo "2143"]

1. d4 {[%clk 01:30:57]} {[%emt 00:00:35]} d5 {[%clk 01:30:39]} {[%emt
00:00:11]} 2. c4 {[%clk 01:31:09]} dxc4 {[%clk 01:30:38]} {[%emt 00:00:27]} 3.
Nf3 {[%clk 01:31:35]} {[%emt 00:00:34]} Nf6 {[%clk 01:30:14]} {[%emt 00:00:24]}
4. e3 {[%clk 01:31:56]} {[%emt 00:00:39]} e6 {[%clk 01:30:09]} {[%emt
00:00:11]} 5. Bxc4 {[%clk 01:32:20]} {[%emt 00:00:11]} c5 {[%clk 01:30:16]}
{[%emt 00:00:12]} 6. O-O {[%clk 01:31:06]} {[%emt 00:01:45]} a6 {[%clk
01:30:09]} {[%emt 00:01:01]} 7. dxc5 {[%clk 01:29:25]} {[%emt 00:01:47]} Bxc5
{[%clk 01:29:11]} {[%emt 00:01:25]} 8. Qxd8+ {[%clk 01:29:51]} {[%emt
00:00:46]} Kxd8 {[%clk 01:29:34]} 9. Ne5 {[%clk 01:30:18]} Ke7 {[%clk
01:28:22]} {[%emt 00:01:09]} 10. Be2 {[%clk 01:30:44]} {[%emt 00:00:34]} Nfd7
{[%clk 01:19:34]} {[%emt 00:08:50]} 11. Nd3 {[%clk 01:30:48]} {[%emt 00:00:25]}
Bd6 {[%clk 01:19:15]} {[%emt 00:00:48]} 12. Nd2 {[%clk 01:28:01]} {[%emt
00:03:17]} Rd8 {[%clk 01:04:31]} {[%emt 00:15:16]} 13. Ne4 {[%clk 01:19:10]}
{[%emt 00:09:18]} Bc7 {[%clk 01:02:23]} {[%emt 00:03:09]} 14. b3 {[%clk
01:19:35]} Nf6 {[%clk 01:01:24]} {[%emt 00:01:05]} 15. Ba3+ {[%clk 01:19:57]}
{[%emt 00:00:11]} Ke8 {[%clk 01:01:43]} {[%emt 00:00:06]} 16. Nxf6+ {[%clk
01:19:35]} {[%emt 00:01:17]} gxf6 {[%clk 01:02:07]} {[%emt 00:00:04]} 17. Rac1
{[%clk 01:19:10]} {[%emt 00:00:32]} Nc6 {[%clk 00:59:16]} {[%emt 00:03:23]} 18.
Nb4 {[%clk 00:55:26]} {[%emt 00:24:14]} Bd7 {[%clk 00:45:42]} {[%emt 00:14:04]}
19. Rfd1 {[%clk 00:46:47]} {[%emt 00:09:06]} Rac8 {[%clk 00:38:00]} {[%emt
00:08:30]} 20. Bf3 {[%clk 00:46:39]} {[%emt 00:00:39]} Nxb4 {[%clk 00:33:52]}
{[%emt 00:05:05]} 21. Bxb4 {[%clk 00:47:04]} Bc6 {[%clk 00:33:45]} 22. Bxc6+
{[%clk 00:44:21]} {[%emt 00:03:19]} bxc6 {[%clk 00:34:07]} 23. Rxd8+ {[%clk
00:44:41]} {[%emt 00:00:14]} Rxd8 {[%clk 00:33:27]} {[%emt 00:01:15]} 24. Kf1
{[%clk 00:44:55]} {[%emt 00:00:09]} Kd7 {[%clk 00:31:04]} {[%emt 00:03:27]} 25.
Rc4 {[%clk 00:45:18]} e5 {[%clk 00:24:30]} {[%emt 00:06:35]} 26. Rh4 {[%clk
00:44:26]} {[%emt 00:01:44]} Rh8 {[%clk 00:23:43]} {[%emt 00:00:52]} 27. Rh6
{[%clk 00:44:51]} {[%emt 00:00:06]} Ke6 {[%clk 00:23:04]} {[%emt 00:01:12]} 28.
Bc3 {[%clk 00:43:51]} {[%emt 00:01:57]} Kf5 {[%clk 00:16:30]} {[%emt 00:06:33]}
29. e4+ {[%clk 00:40:27]} {[%emt 00:03:54]} Ke6 {[%clk 00:15:37]} {[%emt
00:01:45]} 30. f4 {[%clk 00:39:47]} {[%emt 00:01:25]} Bd6 {[%clk 00:15:12]}
{[%emt 00:00:18]} 31. h3 {[%clk 00:37:51]} {[%emt 00:02:25]} Ke7 {[%clk
00:12:31]} {[%emt 00:03:29]} 32. f5 {[%clk 00:35:33]} {[%emt 00:02:37]} Bc5
{[%clk 00:12:14]} {[%emt 00:00:44]} 33. Ke2 {[%clk 00:35:49]} {[%emt 00:00:10]}
Ba3 {[%clk 00:07:05]} {[%emt 00:06:01]} 34. Be1 {[%clk 00:33:34]} {[%emt
00:02:24]} Rd8 {[%clk 00:06:22]} {[%emt 00:01:31]} 35. Rxf6 {[%clk 00:27:04]}
{[%emt 00:06:49]} Rd4 {[%clk 00:06:37]} {[%emt 00:00:50]} 36. Rxc6 {[%clk
00:27:30]} Rxe4+ {[%clk 00:07:01]} 37. Kd1 {[%clk 00:27:58]} Rd4+ {[%clk
00:06:19]} {[%emt 00:00:50]} 38. Kc2 {[%clk 00:28:22]} Rd6 {[%clk 00:05:16]}
{[%emt 00:01:44]} 39. Rc7+ {[%clk 00:27:42]} {[%emt 00:01:22]} Kf8 {[%clk
00:03:38]} {[%emt 00:02:03]} 40. b4 {[%clk 00:27:48]} {[%emt 00:00:07]} Rd4
{[%clk 00:02:25]} {[%emt 00:01:40]} 41. Kb3 {[%clk 00:27:02]} {[%emt 00:02:02]}
Re4 {[%clk 00:02:05]} {[%emt 00:00:06]} 42. Bd2 {[%clk 00:27:11]} {[%emt
00:00:18]} 1-0

[Event "6. Internationales Spandauer Weihnachtsopen 2023"]
[Site "Spandau, Germany"]
[Date "2023.12.29"]
[Round "6.3"]
[White "Solberg, Joachim"]
[Black "Baldauf, Marco"]
[Result "0-1"]
[TimeControl "90 min+30 sec"]
[WhiteElo "2162"]
[BlackElo "2488"]

1. e4 {[%clk 01:25:53]} {[%emt 00:05:08]} c5 {[%clk 01:30:43]} {[%emt
00:00:17]} 2. c3 {[%clk 01:25:53]} {[%emt 00:00:36]} Nf6 {[%clk 01:31:09]}
{[%emt 00:00:04]} 3. e5 {[%clk 01:26:20]} Nd5 {[%clk 01:31:34]} {[%emt
00:00:12]} 4. Nf3 {[%clk 01:26:48]} d6 {[%clk 01:31:51]} {[%emt 00:00:06]} 5.
d4 {[%clk 01:27:13]} {[%emt 00:00:06]} cxd4 {[%clk 01:32:17]} {[%emt 00:00:10]}
6. cxd4 {[%clk 01:27:41]} Nc6 {[%clk 01:32:40]} {[%emt 00:00:04]} 7. Bc4 {[%clk
01:27:20]} {[%emt 00:00:48]} dxe5 {[%clk 01:33:06]} {[%emt 00:00:07]} 8. Nxe5
{[%clk 01:25:54]} {[%emt 00:01:53]} e6 {[%clk 01:31:49]} {[%emt 00:01:47]} 9.
Nxc6 {[%clk 01:23:36]} {[%emt 00:02:48]} bxc6 {[%clk 01:32:14]} {[%emt
00:00:06]} 10. O-O {[%clk 01:23:53]} {[%emt 00:00:12]} Be7 {[%clk 01:31:03]}
{[%emt 00:01:41]} 11. Nc3 {[%clk 01:16:31]} {[%emt 00:07:57]} O-O {[%clk
01:31:11]} {[%emt 00:00:17]} 12. a3 {[%clk 01:14:17]} {[%emt 00:02:45]} a5
{[%clk 01:31:13]} {[%emt 00:00:32]} 13. Re1 {[%clk 01:13:50]} {[%emt 00:00:53]}
Ba6 {[%clk 01:29:40]} {[%emt 00:02:05]} 14. Bxa6 {[%emt 00:16:26]} Rxa6 {[%clk
01:30:00]} {[%emt 00:00:19]} 15. Qc2 {[%clk 00:57:20]} {[%emt 00:00:52]} Qb6
{[%clk 01:17:43]} {[%emt 00:12:46]} 16. Be3 {[%clk 00:56:48]} {[%emt 00:01:10]}
Rb8 {[%clk 01:10:08]} {[%emt 00:07:57]} 17. Nxd5 {[%clk 00:50:54]} {[%emt
00:06:24]} cxd5 {[%clk 01:10:31]} {[%emt 00:00:10]} 18. Re2 {[%clk 00:51:19]}
{[%emt 00:00:04]} Bd6 {[%clk 00:57:20]} {[%emt 00:13:41]} 19. Rc1 {[%clk
00:50:40]} {[%emt 00:01:14]} a4 {[%clk 00:55:19]} {[%emt 00:02:29]} 20. Qd2
{[%clk 00:47:31]} {[%emt 00:03:39]} Qb7 {[%clk 00:49:10]} {[%emt 00:06:33]} 21.
Bf4 {[%clk 00:46:07]} {[%emt 00:01:55]} Rc8 {[%clk 00:48:10]} {[%emt 00:01:29]}
22. Bxd6 {[%clk 00:45:49]} {[%emt 00:00:48]} Rxd6 {[%clk 00:48:37]} {[%emt
00:00:27]} 23. Re3 {[%clk 00:45:21]} {[%emt 00:01:06]} Rc4 {[%clk 00:43:42]}
{[%emt 00:05:04]} 24. Rec3 {[%clk 00:44:22]} {[%emt 00:01:17]} Qb5 {[%clk
00:42:20]} {[%emt 00:01:57]} 25. g3 {[%clk 00:39:35]} {[%emt 00:05:25]} h6
{[%clk 00:42:23]} {[%emt 00:00:15]} 26. Rxc4 {[%clk 00:39:08]} {[%emt
00:00:56]} dxc4 {[%clk 00:42:49]} {[%emt 00:00:05]} 27. Qc3 {[%clk 00:39:12]}
{[%emt 00:00:28]} Qb6 {[%clk 00:38:05]} {[%emt 00:05:10]} 28. Qxc4 {[%clk
00:38:51]} {[%emt 00:00:52]} Qxb2 {[%clk 00:37:48]} {[%emt 00:00:46]} 29. Rc3
{[%clk 00:38:46]} {[%emt 00:00:36]} Rd5 {[%clk 00:35:53]} {[%emt 00:02:25]} 30.
Qd3 {[%clk 00:34:21]} {[%emt 00:04:56]} g6 {[%clk 00:32:32]} {[%emt 00:03:50]}
31. Qe3 {[%clk 00:28:12]} {[%emt 00:06:39]} Rf5 {[%clk 00:28:09]} {[%emt
00:04:53]} 32. Rc4 {[%clk 00:24:53]} {[%emt 00:03:49]} Qb1+ {[%clk 00:28:32]}
{[%emt 00:00:06]} 33. Rc1 {[%clk 00:23:49]} {[%emt 00:01:36]} Qb2 {[%clk
00:23:04]} {[%emt 00:05:58]} 34. Rc4 {[%clk 00:24:08]} {[%emt 00:00:10]} g5
{[%clk 00:18:48]} {[%emt 00:04:56]} 35. Rxa4 {[%clk 00:19:14]} {[%emt
00:05:15]} Qb1+ {[%clk 00:19:12]} {[%emt 00:00:06]} 36. Kg2 {[%clk 00:19:40]}
{[%emt 00:00:05]} Qb7+ {[%clk 00:19:39]} {[%emt 00:00:05]} 37. Kg1 {[%clk
00:18:13]} {[%emt 00:01:55]} Rf3 {[%clk 00:16:43]} {[%emt 00:03:25]} 38. Rb4
{[%clk 00:02:49]} {[%emt 00:15:58]} Qd5 {[%clk 00:17:07]} {[%emt 00:00:04]} 39.
Qe5 {[%clk 00:02:39]} {[%emt 00:00:41]} Qxe5 {[%clk 00:16:46]} {[%emt
00:00:48]} 40. dxe5 {[%clk 00:03:05]} {[%emt 00:00:07]} Rxa3 {[%clk 00:17:12]}
{[%emt 00:00:05]} 41. Kg2 {[%clk 00:02:19]} {[%emt 00:01:17]} Kg7 {[%clk
00:17:36]} {[%emt 00:00:04]} 42. g4 {[%clk 00:02:33]} {[%emt 00:00:13]} Kg6
{[%clk 00:17:37]} {[%emt 00:00:33]} 43. h3 {[%clk 00:02:58]} {[%emt 00:00:04]}
h5 {[%clk 00:17:31]} {[%emt 00:00:37]} 44. Re4 {[%clk 00:03:15]} {[%emt
00:00:09]} h4 {[%clk 00:17:21]} {[%emt 00:00:46]} 45. Re2 {[%clk 00:03:35]}
{[%emt 00:00:06]} Kg7 {[%clk 00:16:57]} {[%emt 00:00:52]} 46. Re4 {[%clk
00:03:41]} {[%emt 00:00:25]} Kf8 {[%clk 00:17:22]} {[%emt 00:00:05]} 47. Re2
{[%clk 00:02:07]} {[%emt 00:02:05]} Ke7 {[%clk 00:17:47]} {[%emt 00:00:16]} 48.
Re4 {[%clk 00:02:26]} Rb3 {[%clk 00:16:42]} {[%emt 00:01:35]} 49. Re2 {[%clk
00:02:38]} {[%emt 00:00:23]} Kd7 {[%clk 00:17:07]} 50. Rd2+ {[%clk 00:02:37]}
{[%emt 00:00:42]} Ke7 {[%clk 00:17:10]} {[%emt 00:00:15]} 51. Re2 {[%clk
00:03:00]} {[%emt 00:00:10]} Rc3 {[%clk 00:17:33]} {[%emt 00:00:05]} 52. Re4
{[%clk 00:03:16]} {[%emt 00:00:12]} Rd3 {[%clk 00:17:55]} {[%emt 00:00:08]} 53.
Re2 {[%clk 00:02:23]} {[%emt 00:01:22]} Kd7 {[%clk 00:18:18]} {[%emt 00:00:08]}
54. Re4 {[%clk 00:02:23]} {[%emt 00:00:34]} Rd5 {[%clk 00:17:41]} {[%emt
00:01:03]} 55. Kf3 {[%clk 00:02:36]} {[%emt 00:00:16]} Kc6 {[%clk 00:17:59]}
{[%emt 00:00:13]} 56. Re3 {[%clk 00:02:20]} {[%emt 00:00:49]} Rd4 {[%clk
00:17:05]} {[%emt 00:01:20]} 57. Ra3 {[%clk 00:02:13]} {[%emt 00:00:38]} Rf4+
{[%clk 00:15:53]} {[%emt 00:01:42]} 58. Ke3 {[%clk 00:02:37]} {[%emt 00:00:06]}
Rc4 {[%clk 00:16:19]} {[%emt 00:00:11]} 59. Rd3 {[%clk 00:01:01]} {[%emt
00:02:00]} Ra4 {[%clk 00:14:58]} {[%emt 00:01:49]} 60. Rd6+ {[%clk 00:01:05]}
{[%emt 00:00:26]} Kc7 {[%clk 00:15:02]} {[%emt 00:00:26]} 61. Rd3 {[%clk
00:01:29]} {[%emt 00:00:05]} Rc4 {[%clk 00:14:57]} {[%emt 00:00:36]} 62. Kf3
{[%clk 00:01:36]} {[%emt 00:00:22]} Rc1 {[%clk 00:15:06]} {[%emt 00:00:21]} 63.
Ke4 {[%clk 00:01:37]} {[%emt 00:00:35]} Re1+ {[%clk 00:15:13]} {[%emt
00:00:18]} 64. Kd4 {[%clk 00:01:52]} {[%emt 00:00:15]} Kd7 {[%clk 00:15:27]}
{[%emt 00:00:16]} 65. Rf3 {[%clk 00:01:38]} {[%emt 00:00:44]} Ke7 {[%clk
00:15:53]} {[%emt 00:00:04]} 66. Ra3 {[%clk 00:01:56]} {[%emt 00:00:10]} Re2
{[%clk 00:16:06]} {[%emt 00:00:17]} 67. Rf3 {[%clk 00:02:14]} {[%emt 00:00:13]}
Kf8 {[%clk 00:15:44]} {[%emt 00:00:52]} 68. Rf6 {[%clk 00:02:36]} {[%emt
00:00:07]} Ke8 {[%clk 00:15:52]} {[%emt 00:00:23]} 69. Rf3 {[%clk 00:02:59]}
{[%emt 00:00:07]} Ke7 {[%clk 00:16:18]} {[%emt 00:00:07]} 70. Rf6 {[%clk
00:03:20]} {[%emt 00:00:09]} Ra2 {[%clk 00:16:40]} {[%emt 00:00:06]} 71. Rf3
{[%clk 00:01:29]} {[%emt 00:02:20]} Ra4+ {[%clk 00:16:59]} {[%emt 00:00:12]} 72.
Kc5 {[%clk 00:00:36]} {[%emt 00:01:24]} Re4 {[%clk 00:17:24]} {[%emt 00:00:06]}
73. Re3 {[%clk 00:01:04]} {[%emt 00:00:04]} Rf4 {[%clk 00:17:37]} {[%emt
00:00:13]} 74. f3 {[%clk 00:01:26]} {[%emt 00:00:12]} Ra4 {[%clk 00:17:40]}
{[%emt 00:00:22]} 75. Re2 {[%clk 00:01:08]} {[%emt 00:00:48]} Kf8 {[%clk
00:16:26]} {[%emt 00:01:45]} 76. Rf2 {[%clk 00:01:07]} {[%emt 00:03:52]} Kg7
{[%clk 00:16:25]} 77. Rf1 {[%clk 00:01:22]} Kf8 {[%clk 00:11:21]} {[%emt
00:03:04]} 78. Rf2 {[%clk 00:00:51]} {[%emt 00:00:55]} Ke7 {[%clk 00:11:47]}
{[%emt 00:00:04]} 79. Rb2 {[%clk 00:00:57]} {[%emt 00:00:25]} Ra3 {[%clk
00:11:58]} {[%emt 00:00:22]} 80. Rf2 {[%clk 00:00:50]} {[%emt 00:00:35]} Ra1
{[%clk 00:11:58]} {[%emt 00:00:28]} 81. Kd4 {[%clk 00:00:52]} {[%emt 00:00:28]}
Rh1 {[%clk 00:12:20]} {[%emt 00:00:08]} 82. Ke3 {[%clk 00:00:46]} {[%emt
00:00:39]} Rxh3 {[%clk 00:12:44]} {[%emt 00:00:05]} 83. Ra2 {[%clk 00:01:12]}
{[%emt 00:00:05]} Kf8 {[%clk 00:12:33]} {[%emt 00:00:38]} 84. Ra1 {[%clk
00:01:13]} {[%emt 00:00:30]} Rh2 {[%clk 00:12:55]} {[%emt 00:00:07]} 85. Rb1
{[%clk 00:00:47]} {[%emt 00:00:56]} Rg2 {[%clk 00:12:18]} {[%emt 00:01:11]} 86.
Rh1 {[%clk 00:01:05]} {[%emt 00:00:08]} Kg7 {[%clk 00:10:33]} {[%emt 00:02:24]}
87. Kd3 {[%clk 00:00:54]} {[%emt 00:00:33]} Ra2 {[%clk 00:09:32]} {[%emt
00:01:36]} 88. Ke3 {[%clk 00:00:49]} {[%emt 00:01:37]} Kg6 {[%clk 00:09:39]} 89.
Ke4 {[%clk 00:01:08]} f6 {[%clk 00:08:27]} {[%emt 00:01:09]} 90. exf6 {[%clk
00:00:57]} {[%emt 00:00:43]} Kxf6 {[%clk 00:08:53]} {[%emt 00:00:05]} 91. Rc1
{[%clk 00:00:41]} {[%emt 00:00:42]} Ra8 {[%clk 00:07:35]} {[%emt 00:01:48]} 92.
Rb1 {[%clk 00:00:44]} {[%emt 00:00:28]} Ra2 {[%clk 00:03:47]} {[%emt 00:04:18]}
93. Rh1 {[%clk 00:00:52]} {[%emt 00:00:22]} Ra4+ {[%clk 00:04:11]} {[%emt
00:00:06]} 94. Ke3 {[%clk 00:01:08]} {[%emt 00:00:14]} Ke5 {[%clk 00:04:28]}
{[%emt 00:00:18]} 95. Re1 {[%clk 00:00:39]} {[%emt 00:00:54]} Rb4 {[%clk
00:03:41]} {[%emt 00:01:18]} 96. Kf2+ {[%clk 00:00:33]} {[%emt 00:00:39]} Kf4
{[%clk 00:03:27]} {[%emt 00:00:43]} 97. Kg2 {[%clk 00:00:45]} {[%emt 00:00:24]}
e5 {[%clk 00:02:25]} {[%emt 00:01:25]} 98. Kh3 {[%clk 00:00:46]} {[%emt
00:00:27]} Rb3 {[%clk 00:00:49]} {[%emt 00:02:06]} 0-1

[Event "6. Internationales Spandauer Weihnachtsopen 2023"]
[Site "Spandau, Germany"]
[Date "2023.12.29"]
[Round "6.4"]
[White "Daniel, Damian"]
[Black "Tiarks, Jann-Christian"]
[Result "1/2-1/2"]
[TimeControl "90 min+30 sec"]
[WhiteElo "2129"]
[BlackElo "2224"]

1. d4 {[%clk 01:30:57]} {[%emt 00:00:03]} d5 {[%clk 01:30:42]} {[%emt
00:00:16]} 2. c4 {[%clk 01:31:06]} {[%emt 00:00:25]} c6 {[%clk 01:31:05]}
{[%emt 00:00:10]} 3. Nc3 {[%clk 01:30:49]} {[%emt 00:00:45]} Nf6 {[%clk
01:31:26]} {[%emt 00:00:10]} 4. Nf3 {[%clk 01:30:35]} {[%emt 00:00:39]} e6
{[%clk 01:31:47]} {[%emt 00:00:13]} 5. g3 {[%clk 01:29:51]} {[%emt 00:01:27]}
dxc4 {[%clk 01:31:31]} {[%emt 00:00:26]} 6. a4 {[%clk 01:29:42]} {[%emt
00:00:40]} Nbd7 {[%clk 01:31:26]} {[%emt 00:00:34]} 7. Bg2 {[%clk 01:29:25]}
{[%emt 00:00:50]} Bb4 {[%clk 01:29:45]} {[%emt 00:02:45]} 8. O-O {[%clk
01:28:42]} {[%emt 00:01:01]} O-O {[%clk 01:29:53]} {[%emt 00:00:07]} 9. Qc2
{[%clk 01:26:48]} {[%emt 00:02:15]} Re8 {[%clk 01:24:05]} {[%emt 00:06:24]} 10.
Na2 {[%clk 01:21:32]} {[%emt 00:05:43]} Bd6 {[%clk 01:21:27]} {[%emt 00:03:05]}
11. Nd2 {[%clk 01:18:49]} {[%emt 00:03:14]} e5 {[%clk 01:19:49]} {[%emt
00:02:08]} 12. Nxc4 {[%clk 01:15:20]} {[%emt 00:04:18]} Bc7 {[%clk 01:19:52]}
{[%emt 00:00:25]} 13. dxe5 {[%clk 01:07:46]} {[%emt 00:07:45]} Nxe5 {[%clk
01:18:24]} {[%emt 00:02:05]} 14. Rd1 {[%clk 01:04:38]} {[%emt 00:03:33]} Qe7
{[%clk 01:15:32]} {[%emt 00:03:35]} 15. Nxe5 {[%clk 01:04:33]} {[%emt
00:00:22]} Bxe5 {[%clk 01:15:54]} {[%emt 00:00:08]} 16. Be3 {[%clk 01:02:03]}
{[%emt 00:02:57]} Bg4 {[%clk 01:09:49]} {[%emt 00:06:35]} 17. Nc3 {[%clk
00:58:59]} {[%emt 00:03:36]} Be6 {[%clk 01:05:31]} {[%emt 00:05:08]} 18. Bd4
{[%clk 00:49:10]} {[%emt 00:09:58]} Bxd4 {[%clk 00:54:22]} {[%emt 00:11:38]} 19.
Rxd4 {[%clk 00:49:23]} {[%emt 00:00:18]} Qc5 {[%clk 00:54:36]} {[%emt
00:00:40]} 20. Qd2 {[%clk 00:46:36]} {[%emt 00:02:52]} a5 {[%clk 00:53:14]}
{[%emt 00:01:52]} 21. Ne4 {[%clk 00:34:19]} {[%emt 00:12:50]} Nxe4 {[%clk
00:52:43]} {[%emt 00:00:56]} 22. Bxe4 {[%clk 00:34:19]} {[%emt 00:00:40]} Qb6
{[%clk 00:50:15]} {[%emt 00:03:00]} 23. Rd1 {[%clk 00:31:55]} {[%emt 00:02:44]}
g6 {[%clk 00:49:19]} {[%emt 00:01:32]} 24. h4 {[%clk 00:28:11]} {[%emt
00:04:07]} Bb3 {[%clk 00:48:32]} {[%emt 00:01:16]} 25. Bc2 {[%clk 00:26:55]}
{[%emt 00:02:17]} Bxc2 {[%clk 00:47:50]} {[%emt 00:00:42]} 26. Qxc2 {[%clk
00:26:47]} {[%emt 00:00:46]} 1/2-1/2